Cogmind - Beta 16 @@@ ROGUE MODE // 2026.01.07 @ 23:36:03 Player: Bity Result: Self-destructed Performance ------------- Evolutions (2) 1000 Regions Visited (10) 2000 Robots Destroyed (64) 320 Value Destroyed (1298) 1298 Prototype IDs (18) 360 Alien Tech Used (0) 0 Bonus (536) 536 TOTAL SCORE: 5514 Bonus ------- High Alert Combat Kills 94 Follower Combat Kills 422 Registered with UFD 300 Friendly Fire -280 Cogmind --------- Core Integrity 241/550 Matter 235/300 Energy 150/160 System Corruption 0% Temperature Cool (15) Movement Flying (28) Location -8/Scraptown Parts ------- > --- POWER (1) -------- Light Nuclear Core > --- PROPULSION (6) --- Flight Unit Flight Unit Improved Flight Unit Xenon Bombardment Thruster Nuclear Pulse Thruster > --- UTILITY (2) ------ Large Storage Unit Advanced Weight Redist. System > --- WEAPON (2) ------- Companion Sword > --- INVENTORY (15) --- Reinforced Ion Engine Advanced Heat Sink Advanced Energy Well (500) Deep Structural Scanner Experimental Sensor Array ECM Suite Reaction Control System Makeshift Cloaking Device Centrium Light Armor Plating Recalibrator 01-MTF's Shockpuncher Precision Beam Rifle Assault Cannon Assault Cannon Advanced EMP Blaster Peak State ------------ > --- POWER ------------ Light Nuclear Core > --- PROPULSION ------- Flight Unit Flight Unit Flight Unit Improved Flight Unit Xenon Bombardment Thruster Nuclear Pulse Thruster > --- UTILITY ---------- Large Storage Unit Advanced Energy Well > --- WEAPON ----------- 01-MTF's Shockpuncher Katana > --- INVENTORY -------- Reinforced Ion Engine Advanced Heat Sink Medium Storage Unit Advanced Weight Redist. System Experimental Sensor Array ECM Suite Reaction Control System Makeshift Cloaking Device Centrium Light Armor Plating Precision Beam Rifle High-powered Shotgun High-powered Shotgun Assault Cannon Assault Cannon Advanced EMP Blaster [Rating: 43] Favorites ----------- Power Light Ion Engine Engine Light Ion Engine Power Core Light Nuclear Core Propulsion Flight Unit Leg Aluminum Leg Wheel Wheel Hover Unit Improved Hover Unit Flight Unit Flight Unit Utility Large Storage Unit Device Weight Redist. System Storage Large Storage Unit Processor Signal Interpreter Protection Centrium Light Armor Plating Weapon Particle Gun Energy Gun Particle Gun Energy Cannon Advanced Beam Cannon Ballistic Gun Assault Rifle Ballistic Cannon Assault Cannon Launcher Advanced EMP Blaster Slashing Weapon Mining Claw Special Melee Weapon Datajack Build | -11 -10 -10 -9 -9 -9 -8 -8 -8 -8 -8 ------- Run | Yrd Mat Min Mat Min Exi Min Mat Sto Rec Scr Slots Evolved 4 | . . . 2 . . . 2 . . . Power . | . . . . . . . . . . . Propulsion 4 | . . . 2 . . . 2 . . . Utility . | . . . . . . . . . . . Weapon . | . . . . . . . . . . . Parts Attached 86 | 1 17 9 19 2 1 . 5 23 4 5 Power 13 | . 4 1 5 . . . . 2 1 . Engine 9 | . 3 1 5 . . . . . . . Core 4 | . 1 . . . . . . 2 1 . Reactor . | . . . . . . . . . . . Propulsion 30 | . 3 5 10 . . . 5 6 . 1 Treads . | . . . . . . . . . . . Leg 1 | . 1 . . . . . . . . . Wheel 5 | . 2 3 . . . . . . . . Hover 4 | . . . 4 . . . . . . . Flight 20 | . . 2 6 . . . 5 6 . 1 Utility 18 | 1 3 1 1 1 1 . . 5 2 3 Device 9 | 1 . 1 1 1 . . . 3 1 1 Storage 5 | . 2 . . . . . . 1 . 2 Processor 3 | . 1 . . . 1 . . 1 . . Hackware . | . . . . . . . . . . . Protection 1 | . . . . . . . . . 1 . Artifact . | . . . . . . . . . . . Weapon 25 | . 7 2 3 1 . . . 10 1 1 Energy Gun 7 | . 2 2 . 1 . . . 1 1 . Energy Cannon 2 | . . . . . . . . 2 . . Ballistic Gun 7 | . 3 . 2 . . . . 2 . . Ballistic Cannon 2 | . . . . . . . . 2 . . Launcher 3 | . 1 . . . . . . 2 . . Special Weapon . | . . . . . . . . . . . Impact Weapon . | . . . . . . . . . . . Slashing Weapon 3 | . 1 . . . . . . 1 . 1 Piercing Weapon . | . . . . . . . . . . . Special Melee Weapon 1 | . . . 1 . . . . . . . Unidentified Prototypes 12 | . . . 3 . . . . 5 2 2 Parts Lost 21 | . 4 4 5 . . . 2 5 . 1 Power 5 | . 2 1 1 . . . . 1 . . Propulsion 13 | . 1 2 4 . . . 1 4 . 1 Utility 1 | . 1 . . . . . . . . . Weapon 2 | . . 1 . . . . 1 . . . Highest Loss Streak 4 | . 1 3 2 . . . 2 4 . 1 To Critical Strikes . | . . . . . . . . . . . Average Backups 13 | 7 12 12 14 15 15 15 14 14 14 15 Power 1 | 1 . . 1 2 2 2 2 1 1 1 Propulsion 3 | 5 5 4 4 6 6 6 4 2 . . Utility 4 | . 2 2 2 3 4 4 4 4 6 8 Weapon 4 | 1 2 3 5 2 2 2 4 6 7 5 Tool/Special . | . . . . . . . . . . . Unused Backups 24 | . 6 . 4 . . . . 3 3 8 Power 1 | . . . . . . . . 1 . . Propulsion 5 | . 4 . 1 . . . . . . . Utility 11 | . 1 . 2 . . . . 1 1 6 Weapon 7 | . 1 . 1 . . . . 1 2 2 Tool/Special . | . . . . . . . . . . . Average Slot Usage (%) 95 | . 95 96 88 100 100 100 94 96 91 97 Engine 7 | . 9 12 10 11 11 11 9 7 4 . Core 3 | . 3 . . . . . . 1 4 9 Leg 2 | . 14 . . . . . . . . . Wheel 3 | . 11 22 . . . . . . . . Hover 9 | . . . 8 44 44 44 15 . . . Flight 27 | . . 4 33 . . . 37 53 54 53 Device 8 | . 9 8 10 11 8 . . 7 9 9 Storage 10 | . 14 14 11 11 11 11 9 9 9 9 Processor 2 | . 4 5 . . 2 11 9 . . . Energy Gun 8 | . 7 25 . 12 22 12 5 1 . 7 Ballistic Gun 4 | . 16 . 6 . . . . 1 . . Ballistic Cannon 1 | . . . . . . . . 6 9 . Slashing Weapon 3 | . 2 1 4 4 . . . 2 . 9 Peak Build Rating 43 | 7 11 12 22 18 18 17 25 38 35 43 Average Rating 21 | 6 9 10 16 16 17 16 20 31 25 38 On Entrance 16 | 6 7 10 11 15 18 17 16 24 27 35 Avg Prop Armor Cover (%) 5 | . 10 . 12 . . . 6 . . 4 Naked Turns . | . . . . . . . . . . . Heaviest Build 42 | 12 31 31 36 29 29 29 31 42 40 35 Greatest Support 39 | 20 20 26 33 33 33 27 30 39 36 38 Greatest Overweight (x) 4 | . 2 3 4 1 1 1 1 1 1 1 Average Overweight (x) . | . 1 1 . . . . . . . . Largest Inventory Capacity 20 | 8 20 15 15 15 15 15 15 15 15 15 Average Capacity 14 | 8 13 15 15 15 15 15 15 15 15 15 Most Carried 15 | 8 15 14 15 15 15 15 15 15 15 15 Average Carried 13 | 7 12 12 14 14 15 14 14 14 14 14 Final Capacity 15 | 8 15 15 15 15 15 15 15 15 15 15 Final Carried 15 | 8 15 13 15 15 15 15 15 15 15 15 Class Distribution -------------------- 61% | Mutant 27% | Scavenger-Mutant 3% | Scavenger-Sprinter 3% | Sprinter Dominant Class ---------------- Mutant | -10/Materials Mutant | -10/Mines Mutant | -9/Materials Mutant | -9/Mines Mutant | -9/Exiles Mutant | -8/Mines Mutant | -8/Materials Scavenger-Mutant | -8/Storage Scavenger-Sprinter | -8/Recycling Scavenger-Mutant | -8/Scraptown Resources | -11 -10 -10 -9 -9 -9 -8 -8 -8 -8 -8 ----------- Run | Yrd Mat Min Mat Min Exi Min Mat Sto Rec Scr Matter Collected 2282 | 314 421 155 530 30 . 20 . 752 60 . Remotely . | . . . . . . . . . . . Salvage Created 1869 | 217 492 55 451 . . . . 654 . . Parts 137 | 30 39 . 36 . . . . 32 . . Haulers Intercepted 7 | . 2 . 1 . . . . 4 . . Recyclers Shooed 5 | . 1 . . . . . . 4 . . Parts Field Recycled . | . . . . . . . . . . . Retrieved Matter . | . . . . . . . . . . . Parts Self-Destructed . | . . . . . . . . . . . Prevented . | . . . . . . . . . . . Parts Restored . | . . . . . . . . . . . Kills | -11 -10 -10 -9 -9 -9 -8 -8 -8 -8 -8 ------- Run | Yrd Mat Min Mat Min Exi Min Mat Sto Rec Scr Combat Hostiles Destroyed 39 | . 11 9 10 . . . . 9 . . Melee 5 | . 2 3 . . . . . . . . Guns 19 | . 7 2 10 . . . . . . . Cannons 3 | . . . . . . . . 3 . . AOE 12 | . 2 4 . . . . . 6 . . Classes Destroyed 12 | 3 5 1 2 . . . . 1 . . Worker 7 | 2 3 . . . . . . 2 . . Tunneler 8 | 8 . . . . . . . . . . Hauler 7 | . 2 . 1 . . . . 4 . . Recycler 3 | 1 1 . 1 . . . . . . . Mechanic 1 | . . . 1 . . . . . . . Operator 1 | . 1 . . . . . . . . . Watcher 6 | . 3 . 1 . . . . 2 . . Swarmer 11 | . 6 . 5 . . . . . . . Grunt 14 | . 5 . 3 . . . . 6 . . Protector 1 | . . . . . . . . 1 . . Sentry 5 | . . . 2 . . . . 3 . . Assembled 9 | . . 9 . . . . . . . . Best Kill Streak 6 | 4 4 4 6 . . . . 4 . . Combat Bots Only 5 | . 3 4 5 . . . . 4 . . Max Kills in Single Turn 3 | 1 3 3 1 . . . . 3 . . Gunslinging . | . . . . . . . . . . . Exploded 3 | . 1 3 . . . . . 3 . . Melee 1 | . 1 1 . . . . . . . . Uniques/NPCs Destroyed . | . . . . . . . . . . . Combat | -11 -10 -10 -9 -9 -9 -8 -8 -8 -8 -8 -------- Run | Yrd Mat Min Mat Min Exi Min Mat Sto Rec Scr Hostile Shots Fired 301 | . 76 31 87 . . . 30 61 . 16 Missed 79 | . 14 8 18 . . . 11 21 . 7 Hits 222 | . 62 23 69 . . . 19 40 . 9 Melee 4 | . . 4 . . . . . . . . Projectile 218 | . 62 19 69 . . . 19 40 . 9 AOE 3 | . . . . . . . . 3 . . Critical Strikes 9 | . 1 1 2 . . . 1 3 . 1 Part Disruptions 1 | . . 1 . . . . . . . . Damage Taken 3034 | . 735 348 761 . . . 279 784 . 127 Core 764 | . 148 92 215 . . . 74 145 . 90 Absorbed by Shields . | . . . . . . . . . . . Regen/Repaired (Parts) 87 | . . . 37 . . . . 50 . . Core Remaining (%) 50 | 100 . 4 . . . 46 . . . . Volleys Fired 157 | 26 47 12 33 . . . . 39 . . Largest 2 | 2 2 2 2 . . . . 2 . . Hottest 130 | 40 130 130 130 . . . . 97 . . Shots Fired 278 | 52 79 19 63 . . . . 65 . . Gun 209 | 52 75 16 63 . . . . 3 . . Cannon 50 | . . . . . . . . 50 . . Launcher 19 | . 4 3 . . . . . 12 . . Special . | . . . . . . . . . . . Kinetic 217 | 52 62 . 55 . . . . 48 . . Thermal 42 | . 13 16 8 . . . . 5 . . Explosive 7 | . 4 3 . . . . . . . . Electromagnetic 12 | . . . . . . . . 12 . . Robot Hit Streak 12 | 11 7 4 12 . . . . 6 . . Robot Miss Streak 7 | 3 7 4 4 . . . . 5 . . Penetration Max . | . . . . . . . . . . . Secondary Targets 2 | . . . 2 . . . . . . . Max Gunslinging Chain 1 | . . . 1 . . . . . . . Shots Hit Robots 199 | 35 56 13 59 . . 1 . 33 1 1 Core Hits 120 | 16 32 24 16 . . . . 32 . . Critical Kills . | . . . . . . . . . . . Critical Parts Destroyed . | . . . . . . . . . . . Critical Strikes 1 | . . . . . . . . 1 . . Blast 1 | . . . . . . . . 1 . . Melee Attacks 39 | . 7 4 15 . . 1 . 10 1 1 Impact . | . . . . . . . . . . . Slashing 38 | . 7 4 15 . . . . 10 1 1 Piercing . | . . . . . . . . . . . Sneak Attacks 7 | . 1 . 3 . . 1 . 1 1 . Combat Hostiles . | . . . . . . . . . . . Follow-up Attacks . | . . . . . . . . . . . Damage Inflicted 5012 | 360 1005 544 1027 . . . . 1918 61 97 Guns 1925 | 360 631 140 776 . . . . 18 . . Cannons 701 | . . . . . . . . 701 . . Explosions 1633 | . 235 294 . . . . . 1104 . . Melee 753 | . 139 110 251 . . . . 95 61 97 Ramming . | . . . . . . . . . . . Kinetic 2340 | 360 548 . 731 . . . . 701 . . Thermal 404 | . 83 140 45 . . . . 136 . . Explosive 529 | . 235 294 . . . . . . . . Electromagnetic 986 | . . . . . . . . 986 . . Impact . | . . . . . . . . . . . Slashing 753 | . 139 110 251 . . . . 95 61 97 Piercing . | . . . . . . . . . . . Highest Corruption 3 | . 3 3 . . . . . 2 2 . Average Corruption 1 | . 1 3 . . . . . 1 2 . Corruption Purged . | . . . . . . . . . . . Corruption Blocked . | . . . . . . . . . . . Effects 27 | . 3 11 . . . . . 8 5 . Message Errors 5 | . 1 1 . . . . . 1 2 . Matter Fused 5 | . . 3 . . . . . 2 . . Heat Flow Errors 5 | . . 2 . . . . . 1 2 . Energy Discharges 8 | . 1 3 . . . . . 3 1 . Data Loss (minor) 1 | . . 1 . . . . . . . . Data Loss (major) 1 | . . . . . . . . 1 . . Alerts 1 | . 1 . . . . . . . . . Weapon Failures 1 | . . 1 . . . . . . . . Overload Shots . | . . . . . . . . . . . Overflow Damage 69 | . 3 10 25 . . . . 31 . . Projectiles 31 | . . . . . . . . 31 . . Explosions 5 | . 3 2 . . . . . . . . Melee 33 | . . 8 25 . . . . . . . Knockbacks 2 | . . . . . . . . 2 . . Impact . | . . . . . . . . . . . Kinetic 2 | . . . . . . . . 2 . . Secondary . | . . . . . . . . . . . Self-Inflicted Damage 103 | . 45 13 . . . . . 45 . . Shots 6 | . 1 2 . . . . . 3 . . Rammed . | . . . . . . . . . . . Targets Rammed . | . . . . . . . . . . . Kicked . | . . . . . . . . . . . Crushed . | . . . . . . . . . . . Highest Temperature 334 | . 118 228 288 . . . 55 260 334 146 Average Temperature 71 | . 47 74 81 . . . 25 71 81 60 Received Heat Transfer 1073 | . 264 200 231 . . . 90 270 . 18 Effects 1 | . . . . . . . . 1 . . Interference 1 | . . . . . . . . 1 . . Siege Activations . | . . . . . . . . . . . Martial Activations . | . . . . . . . . . . . Shielding Activations . | . . . . . . . . . . . Robots Disrupted 2 | . . . . . . . . 2 . . Combat Hostiles 2 | . . . . . . . . 2 . . Robots Corrupted . | . . . . . . . . . . . Combat Hostiles . | . . . . . . . . . . . Parts Fried 1 | . . . . . . . . 1 . . Impact Corruptions . | . . . . . . . . . . . Robots Melted . | . . . . . . . . . . . Combat Hostiles . | . . . . . . . . . . . Parts Melted . | . . . . . . . . . . . Heat Transferred 714 | . 139 277 111 . . . . 187 . . Parts Sabotaged . | . . . . . . . . . . . Parts Stolen . | . . . . . . . . . . . Parts Stripped . | . . . . . . . . . . . Power Chain Reactions 3 | . . . . . . . . 3 . . Alert | -11 -10 -10 -9 -9 -9 -8 -8 -8 -8 -8 ------- Run | Yrd Mat Min Mat Min Exi Min Mat Sto Rec Scr Maximum Alert Level 2 | . 1 . . . . . . 2 1 . Low Security (%) 80 | 100 85 100 100 100 . 100 100 32 72 . Level 1 6 | . 14 . . . . . . 4 27 . Level 2 13 | . . . . . . . . 63 . . Level 3 . | . . . . . . . . . . . Level 4 . | . . . . . . . . . . . Level 5 . | . . . . . . . . . . . High Security . | . . . . . . . . . . . Max Security . | . . . . . . . . . . . Peak Influence 657 | 10 260 61 144 35 . . . 657 234 . Initial 234 | . . 61 . 35 . . . . 234 . Average 132 | 2 97 7 53 3 . . . 414 158 . Influence Increases 2273 | 55 468 10 385 . . . . 1340 15 . Destroy 0b10 Robot/C 940 | . 220 . 200 . . . . 520 . . Destroy 0b10 Robot/NC 175 | 55 50 . 20 . . . . 50 . . Destroy Leader 236 | . 60 . 44 . . . . 132 . . Allied During Kill 260 | . . . . . . . . 260 . . Successful Hack 114 | . 12 . 31 . . . . 56 15 . Disable Machine 120 | . 60 . . . . . . 60 . . Anti-Garrison Action 150 | . . . . . . . . 150 . . Destroy Structure 83 | . 51 10 . . . . . 22 . . Partial Spotted 45 | . . . 30 . . . . 15 . . Lose Combat Pursuer 150 | . 15 . 60 . . . . 75 . . Influence Decreases 2273 | 55 310 168 294 91 . . . 738 548 69 Entered New Map 590 | . . 97 . 56 . . . . 368 69 Time Decay 1188 | 55 285 41 264 35 . . . 328 180 . Lost Part 135 | . 25 30 30 . . . . 50 . . Lost Ally 210 | . . . . . . . . 210 . . Purge Threat 150 | . . . . . . . . 150 . . Squads Dispatched 8 | . 2 . . . . . . 6 . . Investigation 3 | . 1 . . . . . . 2 . . Extermination . | . . . . . . . . . . . Reinforcement 3 | . 1 . . . . . . 2 . . Assault 2 | . . . . . . . . 2 . . Garrison . | . . . . . . . . . . . Intercept . | . . . . . . . . . . . Searches Triggered . | . . . . . . . . . . . Construction Impeded . | . . . . . . . . . . . Haulers Reinforced . | . . . . . . . . . . . Active Scanning Responses . | . . . . . . . . . . . Cargo Convoy Interrupts . | . . . . . . . . . . . Stealth | -11 -10 -10 -9 -9 -9 -8 -8 -8 -8 -8 --------- Run | Yrd Mat Min Mat Min Exi Min Mat Sto Rec Scr Distress Signals 5 | . 2 . 1 . . . . 2 . . Communications Jammed . | . . . . . . . . . . . Distress Signals . | . . . . . . . . . . . Times Spotted 119 | . 19 21 24 . . . 3 40 1 11 Peak Tracking Total 19 | . 4 19 8 . . . 3 8 . 13 Tactical Retreats 8 | . 1 2 2 . . . . 3 . . Traps | -11 -10 -10 -9 -9 -9 -8 -8 -8 -8 -8 ------- Run | Yrd Mat Min Mat Min Exi Min Mat Sto Rec Scr Traps Triggered 6 | . 4 . . . . . . 2 . . Indirectly 1 | . . . . . . . . 1 . . Trap Hack Attempts . | . . . . . . . . . . . Triggered . | . . . . . . . . . . . Disarmed . | . . . . . . . . . . . Reprogrammed . | . . . . . . . . . . . Reused . | . . . . . . . . . . . Traps Extracted . | . . . . . . . . . . . Installed . | . . . . . . . . . . . Triggered . | . . . . . . . . . . . Machines | -11 -10 -10 -9 -9 -9 -8 -8 -8 -8 -8 ---------- Run | Yrd Mat Min Mat Min Exi Min Mat Sto Rec Scr Machines Disabled 9 | . 4 . . . . . . 5 . . Max in Single Turn 2 | . 2 . . . . . . 1 . . Garrison Access 1 | . . . . . . . . 1 . . Machines Repaired . | . . . . . . . . . . . Machines Dismantled . | . . . . . . . . . . . Machines Sabotaged . | . . . . . . . . . . . Overloaded Fab Kills . | . . . . . . . . . . . Hacking | -11 -10 -10 -9 -9 -9 -8 -8 -8 -8 -8 --------- Run | Yrd Mat Min Mat Min Exi Min Mat Sto Rec Scr Machines Accessed 40 | . 6 1 11 . . . 1 12 6 3 Terminals 25 | . 4 1 6 . . . . 8 6 . Fabricators . | . . . . . . . . . . . Repair Stations 5 | . 1 . 2 . . . . 2 . . Recycling Units 4 | . 1 . 2 . . . . 1 . . Scanalyzers 2 | . . . 1 . . . 1 . . . Garrison Access 1 | . . . . . . . . 1 . . Total Hacks 118 | . 15 2 23 . . . 2 39 19 18 Successful 69 | . 8 1 16 . . . 1 17 8 18 Failed 47 | . 7 1 6 . . . . 22 11 . Catastrophic 5 | . 1 . . . . . . 3 1 . Database Lockouts 2 | . . . 1 . . . 1 . . . Manual 53 | . 5 1 11 . . . . 19 17 . Terminals 73 | . 12 2 12 . . . . 28 19 . Fabricators . | . . . . . . . . . . . Repair Stations 16 | . 2 . 6 . . . . 8 . . Recycling Units 5 | . 1 . 3 . . . . 1 . . Scanalyzers 4 | . . . 2 . . . 2 . . . Garrison Access 2 | . . . . . . . . 2 . . Terminal Hacks 34 | . 4 1 2 . . . . 7 2 18 Record 17 | . . 1 . . . . . . . 16 Part Schematic 2 | . . . . . . . . 1 1 . Robot Analysis 1 | . 1 . . . . . . . . . Open Door 4 | . . . . . . . . 3 . 1 Branch Access Points 2 | . 1 . 1 . . . . . . . Terminal Index 2 | . . . . . . . . 1 1 . Repair Station Index 1 | . . . . . . . . 1 . . Alert Level 1 | . 1 . . . . . . . . . Unreport Threat 1 | . . . . . . . . 1 . . Transport Status 1 | . 1 . . . . . . . . . Hauler Manifests 1 | . . . 1 . . . . . . . Proto ID Catalog 1 | . . . . . . . . . . 1 Fabricator Hacks . | . . . . . . . . . . . Repair Station Hacks 11 | . . . 6 . . . . 5 . . Scan Component 6 | . . . 3 . . . . 3 . . Repair 5 | . . . 3 . . . . 2 . . Recycling Unit Hacks 5 | . 1 . 3 . . . . 1 . . Report Inventory 4 | . 1 . 2 . . . . 1 . . Retrieve Components 1 | . . . 1 . . . . . . . Scanalyzer 2 | . . . 1 . . . 1 . . . Retrieve Study 2 | . . . 1 . . . 1 . . . Garrison Access Hacks . | . . . . . . . . . . . Unauthorized Hacks 17 | . 3 . 4 . . . . 4 6 . Terminals 17 | . 3 . 4 . . . . 4 6 . Botnet 16 | . 3 . 4 . . . . 4 5 . Operators 1 | . . . . . . . . . 1 . Fabricators . | . . . . . . . . . . . Repair Stations . | . . . . . . . . . . . Recycling Units . | . . . . . . . . . . . Scanalyzers . | . . . . . . . . . . . Garrison Access . | . . . . . . . . . . . Data Cores Recovered . | . . . . . . . . . . . Used . | . . . . . . . . . . . Hacking Detections 29 | . 5 1 6 . . . . 11 6 . Full Trace Events 8 | . 3 1 . . . . . 3 1 . Feedback Events 2 | . 1 . . . . . . 1 . . Corruption 2 | . 1 . . . . . . 1 . . Feedback Blocked . | . . . . . . . . . . . Robot Schematics Acquired . | . . . . . . . . . . . Robots Built . | . . . . . . . . . . . Authchips . | . . . . . . . . . . . Time . | . . . . . . . . . . . Total Robot Build Rating . | . . . . . . . . . . . Part Schematics Acquired 2 | . . . . . . . . 1 1 . Parts Built . | . . . . . . . . . . . Authchips . | . . . . . . . . . . . Time . | . . . . . . . . . . . Total Part Build Rating . | . . . . . . . . . . . Part Studies Acquired 2 | . . . 1 . . . 1 . . . Parts Repaired 5 | . . . 3 . . . . 2 . . Time 162 | . . . 96 . . . . 66 . . Parts Recycled . | . . . . . . . . . . . Recycled Matter . | . . . . . . . . . . . Retrieved Matter . | . . . . . . . . . . . Retrieved Components 10 | . . . 10 . . . . . . . Parts Scanalyzed . | . . . . . . . . . . . Part Schematics Acquired . | . . . . . . . . . . . Parts Damaged . | . . . . . . . . . . . Bothacking | -11 -10 -10 -9 -9 -9 -8 -8 -8 -8 -8 ------------ Run | Yrd Mat Min Mat Min Exi Min Mat Sto Rec Scr Used RIF Installer . | . . . . . . . . . . . Robots Hacked 1 | . . . . . . 1 . . . . Non-combat 1 | . . . . . . 1 . . . . Combat . | . . . . . . . . . . . Robot Hacks Applied 1 | . . . . . . 1 . . . . no_distress 1 | . . . . . . 1 . . . . Relay Couplers Released . | . . . . . . . . . . . Fabnet Peak Effective % . | . . . . . . . . . . . Robots Rewired . | . . . . . . . . . . . Allies Hacked . | . . . . . . . . . . . Hacks Repelled . | . . . . . . . . . . . Allies | -11 -10 -10 -9 -9 -9 -8 -8 -8 -8 -8 -------- Run | Yrd Mat Min Mat Min Exi Min Mat Sto Rec Scr Total Allies 10 | . . . . . . . . 10 . . Largest Group 10 | . . . . . . . . 10 . . Highest-Rated Group 173 | . . . . . . . . 173 . . Highest-Rated Ally 29 | . . . . . . . . 29 . . Total Orders 1 | . . . . . . . . 1 . . EXPLORE 1 | . . . . . . . . 1 . . Ally Attacks 78 | . . . . . . . . 78 . . Total Damage 1018 | . . . . . . . . 1018 . . Kills 19 | . . . . . . . . 19 . . Allies Corrupted 1 | . . . . . . . . 1 . . Allies Melted . | . . . . . . . . . . . Intel | -11 -10 -10 -9 -9 -9 -8 -8 -8 -8 -8 ------- Run | Yrd Mat Min Mat Min Exi Min Mat Sto Rec Scr Active Infowar (turns) 1172 | 12 711 . . . . . . 7 . 442 Sensors 7 | . . . . . . . . 7 . . Structural 442 | . . . . . . . . . . 442 Seismic 723 | 12 711 . . . . . . . . . Robot Analysis Total 1 | . 1 . . . . . . . . . Derelict Logs Recovered . | . . . . . . . . . . . Drone Launches 16 | . . . . . . . . 16 . . Drone Recoveries 2 | . . . . . . . . 2 . . Exploration | -11 -10 -10 -9 -9 -9 -8 -8 -8 -8 -8 ------------- Run | Yrd Mat Min Mat Min Exi Min Mat Sto Rec Scr Turns Passed 6431 | 249 1093 460 854 448 551 136 63 957 364 1256 Spaces Moved 5783 | 62 701 270 609 464 523 257 95 810 644 1348 Core 21 | . . . 21 . . . . . . . Treads . | . . . . . . . . . . . Legs 334 | 62 272 . . . . . . . . . Wheels 687 | . 429 258 . . . . . . . . Hover 1489 | . . . 205 464 523 257 40 . . . Flight 3252 | . . 12 383 . . . 55 810 644 1348 Fastest Speed 23 | 120 95 95 26 48 48 48 23 24 25 25 Average Speed 76 | 120 122 103 72 51 94 50 42 53 31 91 Slowest Speed 300 | 120 260 274 300 108 108 108 102 106 103 108 Overloaded Moves . | . . . . . . . . . . . Propulsion Burnouts . | . . . . . . . . . . . Robots Hopped 14 | . . . 1 . . . . 7 6 . Potential Cave-ins . | . . . . . . . . . . . Cave-ins Triggered . | . . . . . . . . . . . Exploration Rate (%) 59 | 4 94 44 42 65 74 62 9 82 98 81 Regions Visited 10 Branch Regions 7 Pre-discovered Areas 6 | . . . . 1 . . . . . 5 Known Exits Taken 6 | . 1 1 1 . 1 1 1 . . . Unknown Exits Taken 4 | 1 . . . 1 . . . 1 1 . Scrap Searched 7 | . . 1 . 2 . 2 . . . 2 Spaces Dug 8 | . . 5 . . . . . 3 . . Terrain Destroyed 80 | . 49 15 . . . . . 16 . . Melee 2 | . . . . . . . . 2 . . Projectile 8 | . . . . . . . . 8 . . AOE 70 | . 49 15 . . . . . 6 . . Terrain Rammed . | . . . . . . . . . . . Walls Destroyed . | . . . . . . . . . . . Machines Disabled . | . . . . . . . . . . . Actions | -11 -10 -10 -9 -9 -9 -8 -8 -8 -8 -8 --------- Run | Yrd Mat Min Mat Min Exi Min Mat Sto Rec Scr Total 7422 | 189 845 417 931 673 580 262 115 1244 795 1371 Wait 1165 | 99 41 116 195 201 57 . 5 303 141 7 Move 5746 | 61 700 269 606 463 522 256 94 796 631 1348 Hop 13 | . . . 1 . . . . 6 6 . Pick Up 67 | 2 16 4 15 3 . 2 3 17 3 2 Fast Attach 22 | 1 5 . 7 . . . 1 7 1 . Attach 39 | . 3 5 17 . . . 2 11 1 . Detach 25 | . . . 14 . . . 1 7 2 1 Swap 78 | . 14 7 15 3 1 1 6 20 4 7 Drop 61 | . 12 . 13 3 . 2 3 18 5 5 Fire 157 | 26 47 12 33 . . . . 39 . . Melee 39 | . 7 4 15 . . 1 . 10 1 1 Ram . | . . . . . . . . . . . Kick . | . . . . . . . . . . . Crush . | . . . . . . . . . . . Escape Stasis . | . . . . . . . . . . . Rewire 3 | . . . . . . . . 3 . . Trap . | . . . . . . . . . . . Miscellaneous 7 | . . . . . . . . 7 . . Route ------- -11/Scrapyard -10/Materials (discovered 4 exits: *Mat x3 / *Min) -10/Mines -9/Materials (discovered 2 exits: *Min x2) -9/Mines -9/Exiles (discovered 2 exits: *Min x2) -8/Mines -8/Materials -8/Storage -8/Recycling (discovered 2 exits: [*Fac] / *Scr) -8/Scraptown History --------- Turn | Location | Event 1 | -11/Scrapyard | Discovered new exit (range 1) 250 | -11/Scrapyard | Entered Materials 317 | -10/Materials | Build established: Mutant 324 | -10/Materials | Discovered new exit (range 10) 456 | -10/Materials | Discovered new exit (range 14) 843 | -10/Materials | Discovered new exit (range 7) 902 | -10/Materials | Identified exit to Mines 989 | -10/Materials | Core integrity fell below 50% 1090 | -10/Materials | Discovered new exit (range 16) 1106 | -10/Materials | Identified exit to Materials 1343 | -10/Materials | Entered Mines 1366 | -10/Mines | Assembled infested the area 1371 | -10/Mines | Assisted by a Guerilla fighting off Assembled 1424 | -10/Mines | Core integrity fell below 20% 1455 | -10/Mines | Lost 3 parts (1p1n1w) 1788 | -10/Mines | Discovered exit to Materials (range 15) 1803 | -10/Mines | Entered Materials 1803 | -9/Materials | Evolved 2 slots: Propulsion x2 1828 | -9/Materials | Discovered new exit (range 9) 2004 | -9/Materials | Repaired VTOL Module 2037 | -9/Materials | Repaired VTOL Module 2190 | -9/Materials | Central database locked down 2359 | -9/Materials | Core integrity fell below 50% 2559 | -9/Materials | Repaired Weight Redist. System 2593 | -9/Materials | Identified exit to Mines 2657 | -9/Materials | Entered Mines 2724 | -9/Mines | Learned location of Storage (-8) 2762 | -9/Mines | Received a Rocket Launcher from a helpful Derelict 3077 | -9/Mines | Found a damaged Exp. Sensor Array with a note attached 3086 | -9/Mines | Deemed a non-threat by the Exiles lab entrance 3086 | -9/Mines | Discovered new exit (range 5) 3095 | -9/Mines | Found Prototype Device 3105 | -9/Mines | Entered Exiles 3117 | -9/Exiles | Met 8R-AWN 3124 | -9/Exiles | Met EX-HEX 3138 | -9/Exiles | Met EX-BIN 3241 | -9/Exiles | Met EX-DEC 3280 | -9/Exiles | Visited The Gauntlet 3513 | -9/Exiles | Discovered new exit (range 11) 3525 | -9/Exiles | Identified exit to Mines 3640 | -9/Exiles | Discovered exit to Mines (range 15) 3656 | -9/Exiles | Entered Mines 3770 | -8/Mines | Discovered new exit (range 4) 3772 | -8/Mines | Identified exit to Materials 3792 | -8/Mines | Entered Materials 3792 | -8/Materials | Evolved 2 slots: Propulsion x2 3801 | -8/Materials | Central database locked down 3810 | -8/Materials | Discovered new exit (range 16) 3830 | -8/Materials | Identified exit to Storage 3855 | -8/Materials | Entered Storage 3858 | -8/Storage | Identified Exp. Sensor Array 4032 | -8/Storage | Assisted by bots powering up and referring to "LRC-V3" 4198 | -8/Storage | Repaired Xenon Bombardment Thruster 4287 | -8/Storage | Lost 6 allies 4371 | -8/Storage | Repaired Xenon Bombardment Thruster 4533 | -8/Storage | Lost 4 parts (1p3n) 4763 | -8/Storage | Met 01-MTF 4764 | -8/Storage | Build established: Scavenger-Mutant 4802 | -8/Storage | Used back door to open Recycling access 4802 | -8/Storage | Discovered new exit (range 4) 4812 | -8/Storage | Entered Recycling 4812 | -8/Recycling | Accompanied by 1 ally (01-MTF) 4864 | -8/Recycling | Discovered new exit (range 10) 5150 | -8/Recycling | Scanned before Scraplab entrance 5167 | -8/Recycling | Found Prototype Energy Gun 5167 | -8/Recycling | Identified 01-MTF's Shockpuncher 5173 | -8/Recycling | Entered Scraplab 5175 | -8/Recycling | Discovered new exit (range 3) 5176 | -8/Recycling | Entered Scraptown 5176 | -8/Scraptown | System corruption cleaned by C-Scrubber 5377 | -8/Scraptown | Visited Assassins FH 5401 | -8/Scraptown | Visited Awakened 5429 | -8/Scraptown | Visited Symbiants 5443 | -8/Scraptown | Visited UFD Registry 5443 | -8/Scraptown | Registered with UFD as "Steelripper" 5461 | -8/Scraptown | Visited CPS Storage 5488 | -8/Scraptown | Visited Scrapoid Research Area 5684 | -8/Scraptown | Visited Cartography Club 5723 | -8/Scraptown | Learned location of Recycling (-8) 5723 | -8/Scraptown | Learned location of Lower Caves (-7) 5723 | -8/Scraptown | Learned location of Quarantine (-2) 5723 | -8/Scraptown | Learned 8 Materials zone layouts 5723 | -8/Scraptown | Learned 16 Factory zone layouts 5723 | -8/Scraptown | Learned 8 Lower Caves zone layouts 5723 | -8/Scraptown | Learned 8 Proximity Caves zone layouts 5723 | -8/Scraptown | Learned 12 Proximity Caves zone layouts 5723 | -8/Scraptown | Learned Materials emergency access door positions 5723 | -8/Scraptown | Learned location of 2 exits from Factory 5723 | -8/Scraptown | Learned location of 2 exits from Upper Caves 5726 | -8/Scraptown | Found Deep Structural Scanner 5801 | -8/Scraptown | Visited Scrapoid Pod Storage 5819 | -8/Scraptown | Visited Chapter 10 5833 | -8/Scraptown | Visited Modified Component R&D 5861 | -8/Scraptown | Visited Sword Containment 5874 | -8/Scraptown | Found Prototype Slashing Weapon 5874 | -8/Scraptown | Identified Companion Sword 5897 | -8/Scraptown | Visited Scrap Suit Storage 5931 | -8/Scraptown | Visited Botcube Research 5961 | -8/Scraptown | Visited Research Penetration Think Tank 5983 | -8/Scraptown | Visited Science Guys 6017 | -8/Scraptown | Visited Curators Association 6420 | -8/Scraptown | Attacked by Scraptown defenders 6431 | -8/Scraptown | Core integrity fell below 50% 6432 | -8/Scraptown | Self-destructed Last Messages --------------- 06188_ 5V-4HO(c): "Come one, come all! See for yourself a fine selection of the many wondrous pieces in our collection!" EV-J2O(E): Everyone knows Triborg is not just a nonsentient automaton and can be piloted as well. Being an 0bPrime project, everyone also knows who the main pilot is. They should definitely offer us rides if we ask nicely. 06419_ Sneak attack on 08S01-D. 06420_ ANNOUNCEMENT: Intruder alert! Defend Scraptown! 06427_ Flight Unit destroyed. 06428_ Slug penetrates Wall. 06428_ Bolt penetrates Wall. 06429_ 2H-Z78(j): "Are you the baddie?" 06430_ Triborg activates siege mode. 06430_ Penetrated by Siege Slug. 06432_ Penetrated by Bolt. Map ----- +----------------------------------------------------+ | "#???????????????# # | | "#???????????????# # | | "#???????????????# ############ #### # | | "#???????????????# #????????? #?# # | | "#???????????????# #??????? "#?# # | | "#???????????????# #????? ""#?# # | | "#?????????????? #??? ""#?# # | | ##????????????? # #?"" ""#?# # | | ##????????????" # #?"" ""#?# # | | "#????????????##?# ??"" " " ""#?# " | | "#???????????????# ??""""""X"""????# " | | "#???????????????# ??""""""""""????# " | | "#???????????????# #??????#?###????# # | | "#?????????????? # #???????????????# # | | "#??????????????? #???????????????# | | "#???????????????# x #???????????????# | | "#???????????????# x #???????????????# | | ?????????????????# r #???????????????# | | ?????????????????# x ################# | | ##???????????????# r | | "#???????????????#c j | | "#???????????????# | | "#???????????????# | | "#?????????####### | | "#????????## E g | | "#????????# @ | | "########### h % | | c ############ ##;########### ### # | | #?????# #??????# ## # | | "##"" """### #?????#" #??????# ||| ## # | | "##"" "#?# #?????#" " #??????# """"## # | | "##"" "#?# #?????#"" """#??????# | | ## # | | "##"" "#?# #?????# """#??????# """"## # | | "##" "#?# #?????# " """#??????# || ## # | | "##" "#?# #?????#""" " #??????# """"## # | | "##""""""#?# #?????#""" #??????# | | ## # | | #########??# #?????#""" #??????# """"## # | | #??#####???# #?????# " " " #??????####???# # | | "#?#"""#???# #?????# """""#?????????????# # | | "#?#" "#???# #?????###########??############ # | | "#?# #???# #??????????????????#""""""""""" # | | "#?# ##### #??????????????????#""""" """"" # | | "??# ##???????????#######"""" " "" # | | "??# #???????????# # | | "??# ##???###??#### #####"" "" "" " # | | "??##### ### ##???"""""?#""" "#??#""""""""""" # | | "#?????# #?###????"" ""?#""" "#??#""""""""""" # | | "####### ######??#"" "##""" "#??############ # | | "##""""" """""#??#" ""##"" "#?############# # | | "##"""%" " "#??#"" ""##"" "#?#"""""""""""# # | +----------------------------------------------------+ Best States ------------- Heat Dissipation 31 Energy Generation 14 Energy Capacity 265 Matter Stores 300 Matter Capacity 300 Sight Range 16 Robot Scan Range 20 Terrain Scan Density 10 Additional Mass Support 9 Evasion (%) 65 Item Schematics ----------------- Adv. Weight Redist. System | -8/Storage | Hacked Gatling Laser | -8/Recycling | Hacked Robot Schematics ------------------ None Fabricated ------------ Nothing Repaired ---------- VTOL Module | 44% | -9/Materials VTOL Module | 68% | -9/Materials Weight Redist. System | 31% | -9/Materials Xenon Bombardment Thruster | 26% | -8/Storage Xenon Bombardment Thruster | 6% | -8/Storage Studied --------- VTOL Module | -9/Materials | Hacked Imp. Hover Unit | -8/Materials | Hacked Alien Tech Used ----------------- None Achievements -------------- None Challenges ------------ None Game ------ Seed HybridLegInterface Manual? 0 Play Time 01:15:31 Cumulative 65.0 hours Start 2026.01.07 @ 22:18:44 End 2026.01.07 @ 23:36:03 Sessions 3 Manual Loads 0 Difficulty Rogue Special Mode None Game No. 82 Rogue 82 Adventurer 0 Explorer 0 Win Type - Total 1 Types 1/0/0/0/0/0/0/0/0/0 Lore% 44 Gallery% 48 Achievement% 38 Wizard Run 0 Options --------- Layout 2 ASCII 0 Keyboard 1 Movement Numpad Keybinds 0 Fullscreen 2 Font 24/Smallcaps Map View 50x44 Zoom Use 0% Tactical HUD 1 Map Filters NONE Filters NONE Steam 1 RUN: 6a380fcb-c487-472d-be1c-914567810b8a